{"text_format":"2","workbook":"xlsx","n_sheets":2,"sheets":["x","Munka1"],"not_rendered":{"charts":0,"images":0,"macros":0,"external_links":0,"defined_names":2,"comments":0,"pivot_tables":0},"unopened":[],"bounds":{"document_bytes":16777216,"sheet_cells":100000,"run_cost":"one","rows_first":2000,"rows_last":500,"rows_between":2000,"halvings":0,"cell_chars":16384,"cell_head_chars":4096},"cells_cut":0,"cells_raw":0,"read":"whole","date_system":"1900"}

{"sheet":"x","index":0,"n_rows":8,"n_cols":4,"rows_kept":8,"cut":false,"hidden":true,"merged":[]}
["beosztás",null,null,"tanszék"]
["egyetemi adjunktus",null,null,"Általános Nyelvészeti Tanszék"]
["egyetemi docens",null,null,"Finnugor Nyelvtudományi Tanszék"]
["egyetemi tanár",null,null,"Magyar Irodalmi Tanszék"]
["egyetemi tanársegéd",null,null,"Magyar Nyelvészeti Tanszék"]
[null,null,null,"Magyar Nyelvi és Irodalmi Intézet"]
[null,null,null,"Összehasonlító Irodalomtudományi Tanszék"]
[null,null,null,"Vizuális Kultúra és Irodalomelmélet Tanszék"]

{"sheet":"Munka1","index":1,"n_rows":33,"n_cols":28,"rows_kept":33,"cut":false,"hidden":false,"merged":[[31,7,31,8],[0,0,0,1],[0,7,0,19],[0,25,0,27],[30,7,30,8]]}
["Finnugor specializáció BA (MAG-BAS-FGR 2018)",{"$nulls":6},"krediteloszlás",{"$nulls":14},"felelős: Sipőcz Katalin",null,null,"előkövetelmény"]
["kód","mérföldkő/tárgycsoport/tárgy","típus","követ.","felv.","óra","kredit","0.","1.","2.","3.","4.","5.","6.","7.","8.","9.","10.","11.","12.","össz.","mindössz.","tantárgyfelelős","beosztás","hirdető tanszék/intézet","végleges id. telj.","végleges id. felv.","előzetes v.felt."]
["MK-FGR-BAS","Finnugor BA specializáció",{"$nulls":4},50,{"$nulls":14},{"$f":"SUM(U4:U26)","v":50},null,null,"Finnugor Nyelvtudományi Tanszék"]
["FGR-BAS-URA","Uralisztika",{"$nulls":4},18,{"$nulls":13},{"$f":"SUM(H5:T9)","v":18}]
["FGR-BAS-URA1","Bevezetés az uralisztikába","ea","koll","köt",2,3,null,null,null,3,{"$nulls":11},"Bíró Bernadett"]
["FGR-BAS-URA2","Az uráli nyelvcsalád nyelvei","szem","gyj","köt",2,3,null,null,null,3,{"$nulls":11},"Sipőcz Katalin"]
["FGR-BAS-URA3","Uralisztika 1. (Lexikológia)","ea","koll","köt",2,4,{"$nulls":4},4,{"$nulls":10},"Szeverényi Sándor"]
["FGR-BAS-URA4","Uralisztika 2. Hangtörténet 1.)","ea","koll","köt",2,4,{"$nulls":5},4,{"$nulls":9},"Szeverényi Sándor"]
["FGR-BAS-URA5","Uralisztika 3. (Morfológia 1.)","ea","koll","köt",2,4,{"$nulls":6},4,{"$nulls":8},"Szeverényi Sándor"]
["FGR-BAS-FIN","Finn vagy észt nyelv",{"$nulls":4},11,{"$nulls":13},{"$f":"SUM(H11:T15)","v":11}]
["FGR-BAS-FIN1","Finn nyelv 1.","szem","koll","köt",2,2,null,null,null,2,{"$nulls":11},"Anna Orava"]
["FGR-BAS-FIN2","Finn nyelv 2.","szem","gyj","köt",2,2,{"$nulls":4},2,{"$nulls":10},"Anna Orava"]
["FGR-BAS-FIN3","Finn nyelv 3.","szem","gyj","köt",2,2,{"$nulls":5},2,{"$nulls":9},"Anna Orava"]
["FGR-BAS-FIN4","Finn nyelv 4. ","szem","gyj","köt",2,2,{"$nulls":6},2,{"$nulls":8},"Anna Orava"]
["FGR-BAS-FIN5","Finn leíró nyelvtan ","ea.","gyj","köt",2,3,{"$nulls":6},3,{"$nulls":8},"Bíró Bernadett"]
["FGR-BAS-UNY","Egy kisebb uráli nyelv",{"$nulls":4},12,{"$nulls":13},{"$f":"SUM(H17:T20)","v":12}]
["FGR-BAS-UNY1","Egy kisebb uráli nyelv 1.","szem","gyj","köt",2,3,null,null,null,3,{"$nulls":11},"Suntcova Ekaterina "]
["FGR-BAS-UNY2","Egy kisebb uráli nyelv 2.","szem","gyj","köt",2,3,{"$nulls":4},3,{"$nulls":10},"Suntcova Ekaterina "]
["FGR-BAS-UNY3","Egy kisebb uráli nyelv 3.","szem","gyj","köt",2,3,{"$nulls":5},3,{"$nulls":9},"Suntcova Ekaterina "]
["FGR-BAS-UNY4","Egy kisebb uráli nyelv 4.","szem","gyj","köt",2,3,{"$nulls":6},3,{"$nulls":8},"Suntcova Ekaterina "]
["FGR-BAS-FIR","Finnugor irodalmi stúdiumok",{"$nulls":4},6,{"$nulls":13},{"$f":"SUM(H22:T23)","v":6}]
["FGR-BAS-FIR1","Finn  irodalom ","szem","gyj","köt",2,3,{"$nulls":4},3,{"$nulls":10},"Bíró Bernadett"]
["FGR-BAS-FIR2","Egy kisebb uráli nyelv irodalmi szövegeinek olvasása ","szem","gyj","köt",2,3,{"$nulls":5},3,{"$nulls":9},"Bíró Bernadett"]
["FGR-BAS-VAL","Választható tárgy",{"$nulls":4},3,{"$nulls":13},{"$f":"SUM(G24:T24)","v":3}]
["FGR-BAS-VAL1","Választható előadás","ea","koll","kötvál",2,3,null,null,null,3,{"$nulls":11},"Bíró Bernadett"]
["FGR-BAS-VAL2","Választható szeminárium","szem","gyj","kötvál",2,3,null,null,null,3,{"$nulls":11},"Bíró Bernadett"]
[{"$nulls":21},{"$f":"SUM(V3:V26)","v":50}]
[]
[null,null,"minden kredit összesen",{"$nulls":4},{"$f":"SUM(H4:H26)","v":0},{"$f":"SUM(I4:I26)","v":0},{"$f":"SUM(J4:J26)","v":0},{"$f":"SUM(K4:K26,-3)","v":14},{"$f":"SUM(L4:L26)","v":12},12,12,0,0,0,0,0,0,{"$f":"SUM(I29:T29)","v":50}]
[]
[null,null,"előadás kredit",null,null,null,15,{"$f":"G31/G$33","v":0.3}]
[null,null,"szeminárium kredit",null,null,null,35,{"$f":"G32/G$33","v":0.7}]
[null,null,"ea.+szem. kredit",null,null,null,{"$f":"SUM(G31:G32)","v":50}]